[Event "German Bundesliga 2021-22"]
[Site "Germany"]
[Date "2022.04.30"]
[Round "5.2"]
[White "Banusz, Tamas"]
[Black "Areshchenko, Alexander"]
[Result "1/2-1/2"]
[ECO "A33"]
[WhiteElo "2598"]
[BlackElo "2670"]
[Annotator "TA"]
[PlyCount "81"]
[EventDate "2022.03.05"]
[EventType "team-tourn"]
[EventCountry "GER"]
[SourceTitle "playchess.com"]
[Source "ChessBase"]
[SourceQuality "1"]
[TimeControl "40/5400+30:1800+30"]

{[%evp 17,81,4,6,3,9,0,26,0,13,10,8,-1,0,0,0,0,0,0,0,-1,0,-20,0,0,0,0,0,0,0,0,63,50,74,53,82,67,133,129,167,175,200,150,228,228,228,234,241,8,8,8,8,0,45,81,83,0,0,0,14,24,108,104,120,0,0,0]} 1. Nf3 {[%emt 0:00:00]} c5 {[%emt 0:00:00]} 2. c4 {[%emt 0:00:00]} Nc6 {[%emt 0:00:00]} 3. d4 {[%emt 0:00:00]} cxd4 {[%emt 0:00:00]} 4. Nxd4 {[%emt 0:00:00]} Nf6 {[%emt 0:00:00]} 5. Nc3 {[%emt 0:00:00]} e6 {[%emt 0:00:00]} 6. e4 {[%emt 0:00:00]} Bb4 {[%emt 0:00:00]} 7. Nxc6 {[%emt 0:00:00]} bxc6 {[%emt 0:00:00]} 8. Bd3 {[%emt 0:00:00]} e5 {[%emt 0:00:00]} 9. O-O {[%emt 0:00:00]} O-O {[%emt 0:00:00]} 10. h3 $1 {[%emt 0:00:00][%mdl 4] outshines the older 10.Bg5. B44: Sicilian: Taimanov: 5 Nb5.} Bc5 {[%emt 0:03:31]} 11. Re1 {[%emt 0:00:00] [#]} Rb8 $146 {[%emt 0:04:27]} ({Predecessor:} 11... Re8 12. Be3 Bxe3 13. Rxe3 Rb8 14. Qd2 d6 15. Rd1 Be6 16. Be2 Qc8 17. b3 Rd8 {1-0 (49) Oparin,G (2652)-Cheparinov,I (2667) Tornelo INT 2021}) 12. Rb1 {[%emt 0:05:10] White has an edge.} d6 {[%emt 0:03:10]} 13. Be3 {[%emt 0:05:27]} Nd7 {[%emt 0:06:30][%cal Bf6d7,Bd7c5,Bc5e6][%mdl 32]} 14. Bf1 {[%emt 0:02:43]} Qc7 {[%emt 0:03:32]} 15. a3 {[%emt 0:18:45]} Bxe3 {[%emt 0:08:49]} 16. Rxe3 {[%emt 0:02:49]} Nc5 {[%emt 0:00:05] Prevents Rd3.} 17. b4 {[%emt 0:02:40]} Ne6 {[%emt 0:00:07]} 18. Qd2 {[%emt 0:04:52]} Rd8 {[%emt 0:14:41]} 19. Rd1 {[%emt 0:11:25]} Nd4 {[%emt 0:12:18]} 20. Rg3 {[%emt 0:07:35]} f6 {[%emt 0:04:40]} 21. Ne2 {[%emt 0:01:48]} c5 {[%emt 0:01:06]} 22. Nxd4 {[%emt 0:06:44]} cxd4 {[%emt 0:01:29]} 23. f4 {[%emt 0:00:16]} Qf7 {[%emt 0:13:09]} ({Black should play} 23... Qe7 $11) 24. fxe5 {[%emt 0:06:04]} fxe5 {[%emt 0:00:29]} 25. Rc1 {[%emt 0:06:25]} (25. Qg5 {feels hotter.} Re8 26. Rc1 Qe7 27. c5) 25... Bb7 {[%emt 0:06:30]} 26. Bd3 $1 {[%emt 0:00:46]} Kh8 {[%emt 0:04:13]} (26... Re8 $14) 27. Rf1 {[%emt 0:03:59]} Qg8 {[%emt 0:03:07]} 28. Rgf3 {[%emt 0:02:17]} Bc8 {[%emt 0:03:56]} 29. Rf7 {[%emt 0:02:28]} Be6 {[%emt 0:02:55]} (29... Ra8 $16 {is a better defense.}) 30. Rxa7 $18 {[%emt 0:02:03]} Ra8 {[%emt 0:00:23]} 31. Rxa8 {[%emt 0:01:18]} Rxa8 {[%emt 0:00:04]} 32. Rc1 $2 {[%emt 0:03:33]} (32. b5 $18) 32... Rxa3 $11 {[%emt 0:00:27]} 33. c5 {[%emt 0:00:04]} dxc5 {[%emt 0:01:26]} 34. bxc5 {[%emt 0:00:23]} Qc8 {[%emt 0:03:45]} 35. c6 {[%emt 0:00:42] aiming for c7.} Qc7 {[%emt 0:00:45] [#]} 36. Bf1 {[%emt 0:02:04]} (36. Qb4 $1 $16 {[%cal Rb4f8] White threatens Qf8+ and mate.} Ra8 37. Qc5) 36... h6 {[%emt 0:01:53]} 37. Qb4 {[%emt 0:00:55]} Ra7 {[%emt 0:00:50]} 38. Qc5 {[%emt 0:02:29]} Ra5 {[%emt 0:00:15]} (38... Kg8 $11) 39. Qf8+ $16 {[%emt 0:00:40]} Kh7 {[%emt 0:00:03]} 40. Qb4 {[%emt 0:03:01] White is more active.} ({White should try} 40. Kh2 $16) 40... Ra7 {[%emt 0:01:10]} 41. Qb5 {[%emt 0:00:00] Black defended with fortune.  Weighted Error Value: White=0.26 (precise) /Black=0.21 (precise)} 1/2-1/2

[Event "German Bundesliga 2021-22"]
[Site "Germany"]
[Date "2022.04.30"]
[Round "5.2"]
[White "Alonso Rosell, Alvar"]
[Black "Nestorovic, Nikola"]
[Result "1-0"]
[ECO "D12"]
[WhiteElo "2570"]
[BlackElo "2456"]
[Annotator "TA"]
[PlyCount "109"]
[EventDate "2022.03.05"]
[EventType "team-tourn"]
[EventCountry "GER"]
[SourceTitle "playchess.com"]
[Source "ChessBase"]
[SourceQuality "1"]
[TimeControl "40/5400+30:1800+30"]

{[%evp 12,109,14,12,36,23,36,19,38,31,27,29,50,43,57,65,65,52,66,60,70,62,65,42,55,70,67,61,75,0,60,54,68,68,55,53,109,103,106,99,98,43,46,43,74,72,87,86,144,143,233,236,254,140,140,135,156,146,181,159,153,163,225,222,220,197,200,191,261,251,237,218,233,213,375,383,382,382,381,389,389,383,374,351,391,381,397,402,428,416,446,444,442,441,466,505,557,562,489,449]} 1. d4 {[%emt 0:00:00]} d5 {[%emt 0:00:00]} 2. c4 {[%emt 0:00:00]} c6 {[%emt 0:00:00]} 3. Nf3 {[%emt 0:00:00]} Nf6 {[%emt 0:00:00]} 4. e3 {[%emt 0:00:00]} Bf5 {[%emt 0:00:00]} 5. Nc3 {[%emt 0:00:00]} e6 {[%emt 0:00:00]} 6. Be2 {[%emt 0:00:00]} Nbd7 {[%emt 0:00:00] 6...Nbd7 scores better than 6...h6.} 7. Nh4 {[%emt 0:00:18]} Be4 {[%emt 0:00:00] D12: Slav Defence: 3 Nf3 Nf6 4 e3 Bf5.} 8. f3 {[%emt 0:01:04]} Bg6 {[%emt 0:00:00]} 9. g3 {[%emt 0:01:38]} Be7 {[%emt 0:04:05] The position is equal.} 10. O-O {[%emt 0:01:50]} O-O {[%emt 0:04:45]} 11. cxd5 {[%emt 0:02:59] [#]} Nxd5 $146 {[%emt 0:12:41]} ({Predecessor:} 11... cxd5 12. Nxg6 hxg6 13. Qb3 Qb6 14. Qxb6 Nxb6 15. a4 a6 16. a5 Nbd7 17. Bd2 Rac8 {½-½ (47) Ilincic,Z (2436)-Jocev,M (2235) Belgrade 2017}) 12. Nxg6 {[%emt 0:05:58]} hxg6 {[%emt 0:00:07]} 13. e4 {[%emt 0:00:04]} N5b6 {[%emt 0:00:32]} 14. Be3 {[%emt 0:04:25]} e5 {[%emt 0:02:51]} 15. dxe5 {[%emt 0:02:36]} Nxe5 {[%emt 0:00:06]} 16. Qb3 {[%emt 0:01:19] Inhibits Nec4.} Ned7 {[%emt 0:05:10]} 17. Rfd1 {[%emt 0:02:48]} Qe8 {[%emt 0:00:56]} 18. Kg2 {[%emt 0:27:32]} Bc5 {[%emt 0:02:26]} 19. Bg5 {[%emt 0:00:36]} Be7 {[%emt 0:03:19]} 20. Be3 {[%emt 0:00:10] 0x0.0019b958da91dp-1022s more active pieces. The black rooks are badly placed.} Bc5 {[%emt 0:00:07]} 21. Bf4 {[%emt 0:00:03]} Qe7 {[%emt 0:09:44]} 22. h4 $1 {[%emt 0:00:44] Prevents g5.} a5 {[%emt 0:00:29]} 23. Bg5 {[%emt 0:11:19]} Qe8 {[%emt 0:00:32]} (23... Nf6 $1 $14) 24. Na4 $16 {[%emt 0:02:20]} Nxa4 {[%emt 0:05:57]} 25. Qxa4 {[%emt 0:00:08]} Nf6 {[%emt 0:01:13]} 26. Rd3 {[%emt 0:03:47]} (26. Qc2 $16 Qe7 27. Rac1) 26... Qe5 $14 {[%emt 0:05:41]} 27. Qc2 {[%emt 0:03:56]} ({Much weaker is} 27. Bxf6 gxf6 28. Qc2 Rfd8 $11) 27... b6 {[%emt 0:07:52]} 28. Bf4 {[%emt 0:01:50]} Qe6 {[%emt 0:05:23]} 29. Rad1 {[%emt 0:00:36]} Rfe8 {[%emt 0:12:32] [#]} (29... Qe7 $142) 30. Bd6 $1 $16 {[%emt 0:01:59]} Qxa2 {[%emt 0:01:04]} (30... Red8 $16 {was called for.}) 31. Bxc5 $18 {[%emt 0:06:26]} bxc5 {[%emt 0:00:03] [#]} 32. R3d2 {[%emt 0:00:31]} (32. Rb3 $1 $18 {And now Bc4 would win.} Qa4 33. Bc4) 32... Qe6 $16 {[%emt 0:06:01]} 33. Qxc5 {[%emt 0:00:25]} a4 {[%emt 0:00:47]} 34. Rd6 {[%emt 0:05:29]} Qa2 {[%emt 0:10:22]} 35. Qa3 $36 {[%emt 0:07:32][%mdl 2048] White is really pushing.} Qxa3 {[%emt 0:00:56]} 36. bxa3 {[%emt 0:00:01]} c5 {[%emt 0:01:56]} (36... Nd5 {was necessary.}) 37. Bc4 $18 {[%emt 0:02:53]} Rab8 {[%emt 0:00:23]} 38. R1d2 {[%emt 0:01:08]} Kf8 {[%emt 0:00:53]} 39. Ra6 {[%emt 0:01:43]} Red8 {[%emt 0:00:31]} (39... Re7 {might work better.} 40. Rxa4 Rc7) 40. Rxd8+ {[%emt 0:03:17]} Rxd8 {[%emt 0:00:04][%mdl 4096] Endgame KRB-KRN} 41. Kf2 {[%emt 0:00:00]} Nd7 {[%emt 0:00:04]} 42. Ke3 {[%emt 0:00:00]} f5 $2 {[%emt 0:14:46]} (42... Ne5) 43. Rd6 {[%emt 0:07:55]} fxe4 {[%emt 0:03:24]} 44. fxe4 {[%emt 0:00:08]} Ke7 {[%emt 0:00:09]} 45. Rxg6 {[%emt 0:00:10]} Kf8 {[%emt 0:00:44] Hoping for ...Ne5.} 46. Rd6 {[%emt 0:02:44]} Ke7 {[%emt 0:00:04]} 47. Ra6 {[%emt 0:06:23]} Kf8 {[%emt 0:00:01]} 48. Be2 {[%emt 0:02:56]} Rb8 {[%emt 0:03:26]} 49. Rxa4 {[%emt 0:00:05]} Rb3+ {[%emt 0:00:02]} 50. Kf4 {[%emt 0:00:08]} Nb6 {[%emt 0:00:03]} 51. Ra7 {[%emt 0:02:06] White is clearly winning.} Rb2 {[%emt 0:07:36]} 52. Bh5 {[%emt 0:04:02]} c4 {[%emt 0:01:00]} 53. Bg6 {[%emt 0:01:40]} Rf2+ {[%emt 0:01:13]} 54. Ke3 {[%emt 0:00:16]} Rf6 {[%emt 0:00:02]} 55. h5 {[%emt 0:00:10] Weighted Error Value: White=0.09 (flawless) /Black=0.19 (very precise)} 1-0

[Event "German Bundesliga 2021-22"]
[Site "Germany"]
[Date "2022.04.30"]
[Round "5.3"]
[White "Van Foreest, Lucas"]
[Black "Orlov, Andrey"]
[Result "1-0"]
[ECO "D30"]
[WhiteElo "2573"]
[BlackElo "2490"]
[Annotator "TA"]
[PlyCount "109"]
[EventDate "2022.03.05"]
[EventType "team-tourn"]
[EventCountry "GER"]
[SourceTitle "playchess.com"]
[Source "ChessBase"]
[SourceQuality "1"]
[TimeControl "40/5400+30:1800+30"]

{[%evp 20,109,0,0,40,33,22,23,23,27,25,36,36,8,7,0,18,18,24,25,32,30,25,25,22,0,0,0,0,0,3,0,0,0,0,0,0,0,0,0,19,14,86,16,14,10,43,13,21,21,21,29,35,35,35,35,35,36,51,51,64,64,72,73,267,266,239,238,308,308,297,296,264,255,917,887,854,775,4734,4888,2704,2420,4790,5788,29968,29969,29962,29960,12780,12701,29972,29973]} 1. d4 {[%emt 0:00:00]} d5 {[%emt 0:00:00]} 2. c4 {[%emt 0:00:00]} e6 {[%emt 0:00:00]} 3. Nf3 {[%emt 0:00:00]} Nf6 {[%emt 0:00:00]} 4. g3 {[%emt 0:00:00]} Bb4+ {[%emt 0:00:00]} 5. Bd2 {[%emt 0:00:00]} Be7 {[%emt 0:00:00]} 6. Bg2 {[%emt 0:00:00]} O-O {[%emt 0:00:00]} 7. O-O {[%emt 0:00:00]} Nbd7 {[%emt 0:03:21]} 8. Qc2 {[%emt 0:00:00]} c6 {[%emt 0:01:35]} 9. Bf4 {[%emt 0:00:00]} b6 {[%emt 0:05:09]} 10. Rd1 {[%emt 0:00:00]} Bb7 {[%emt 0:00:25]} 11. Ne5 {[%emt 0:00:00] The main line 11.Ne5 scores better than 11.Nc3.} Nxe5 {[%emt 0:08:45] E08: Closed Catalan: Main Line: 7 Qc2.} 12. dxe5 {[%emt 0:00:00]} Nd7 {[%emt 0:01:24]} 13. cxd5 {[%emt 0:01:05]} exd5 {[%emt 0:06:11] White has an edge.} 14. e4 {[%emt 0:00:45][%cal Re4d5]} d4 {[%emt 0:05:18]} 15. Rxd4 {[%emt 0:14:56]} Bc5 $1 {[%emt 0:00:38]} 16. Rd1 {[%emt 0:09:00] aiming for Qd2.} Qe7 {[%emt 0:02:23] [#]} 17. Qc3 $146 {[%emt 0:20:31]} ({Predecessor:} 17. Nc3 Nxe5 18. Qe2 Rad8 19. Rxd8 Rxd8 20. Rd1 Rxd1+ 21. Qxd1 g5 22. Bxe5 Qxe5 23. Qd7 {0-1 (50) Sethuraman,S (2631)-Ganguly,S (2642) Dubai 2018}) 17... Rfe8 {[%emt 0:10:26]} 18. Nd2 {[%emt 0:04:01]} Nxe5 {[%emt 0:19:26]} 19. Bxe5 {[%emt 0:02:16]} Qxe5 {[%emt 0:02:24]} 20. Qxe5 {[%emt 0:00:05]} Rxe5 {[%emt 0:00:09]} 21. Nb3 {[%emt 0:00:22]} Bf8 {[%emt 0:08:07]} 22. Rd7 {[%emt 0:05:03]} (22. f4 $5 {[%cal Rf4e5]} Ree8 23. Rd7 $11) 22... Bc8 {[%emt 0:08:02]} 23. Rd8 {[%emt 0:03:08]} Bb7 {[%emt 0:00:29]} 24. Rd7 {[%emt 0:07:37]} Bc8 {[%emt 0:00:15]} 25. Rd8 {[%emt 0:02:05]} Bb7 {[%emt 0:00:04]} 26. Rxa8 {[%emt 0:01:41]} Bxa8 {[%emt 0:00:04]} 27. f4 {[%emt 0:00:14]} Re8 {[%emt 0:13:28]} 28. e5 {[%emt 0:00:18]} f6 {[%emt 0:00:45]} 29. exf6 {[%emt 0:00:20]} gxf6 {[%emt 0:00:02]} 30. Rd1 {[%emt 0:00:26]} a5 {[%emt 0:00:38]} (30... c5 $11 {remains equal.}) 31. Bf3 {[%emt 0:03:25]} (31. Rd7 $16) 31... a4 {[%emt 0:04:05]} 32. Nd4 {[%emt 0:01:02]} Bc5 {[%emt 0:00:23] White must now prevent ...Rd8.} 33. Kg2 {[%emt 0:00:10]} Bxd4 {[%emt 0:00:39]} 34. Rxd4 $11 {[%emt 0:00:01][%mdl 4096] Endgame KRB-KRB} c5 {[%emt 0:00:07]} 35. Rd2 {[%emt 0:00:03]} c4 {[%emt 0:01:50]} 36. Bxa8 {[%emt 0:00:17]} Rxa8 $14 {[%emt 0:00:03] KR-KR} 37. Rd6 {[%emt 0:02:32][%csl LRb6,LRf6]} a3 {[%emt 0:01:44]} 38. Rxb6 {[%emt 0:00:04]} axb2 {[%emt 0:00:19]} 39. Rxb2 {[%emt 0:00:02]} Kf7 {[%emt 0:00:49]} 40. Kf3 {[%emt 0:00:48]} f5 {[%emt 0:00:27]} 41. Ke3 {[%emt 0:31:02]} Kg6 $2 {[%emt 0:00:00] A mistake that costs the game.} (41... h5 $16) 42. Kd4 $18 {[%emt 0:00:00]} Kh5 {[%emt 0:08:15] [#]} 43. h3 {[%emt 0:00:00]} (43. Kxc4 Kg4 44. Rf2 h5 $16) 43... Ra3 {[%emt 0:02:17]} 44. Rg2 {[%emt 0:00:00]} ({Much less strong is} 44. Kxc4 Ra8 45. Rb5 Rxa2 46. Rxf5+ Kg6 $18) 44... c3 {[%emt 0:01:16][%cal Oc3c2]} 45. Rc2 {[%emt 0:00:00]} Kg6 {[%emt 0:07:18]} 46. Kc4 {[%emt 0:00:00] And now Kb4 would win.} ({Don't do} 46. Rxc3 $6 Rxa2 47. Rc6+ Kg7 $16) 46... h5 $2 {[%emt 0:00:15]} (46... Ra8 47. Kb4 (47. Rxc3 Rxa2 48. Kd4 Rd2+ 49. Ke3 Rh2 $16) (47. Kxc3 Kf7 $18) 47... Rb8+ 48. Kxc3 Ra8) 47. Kb4 {[%emt 0:00:00]} Ra8 {[%emt 0:00:03]} 48. a4 {[%emt 0:00:00]} h4 {[%emt 0:00:36]} 49. Rxc3 {[%emt 0:00:00]} Rb8+ {[%emt 0:00:05] [#]} 50. Ka3 $1 {[%emt 0:00:00]} Ra8 {[%emt 0:00:03]} 51. gxh4 {[%emt 0:00:00]} Kh5 {[%emt 0:00:07]} 52. Kb4 {[%emt 0:00:00]} Rb8+ {[%emt 0:00:05]} 53. Kc4 {[%emt 0:00:00]} Rc8+ {[%emt 0:00:53]} 54. Kd4 {[%emt 0:00:00]} Ra8 {[%emt 0:00:13]} 55. Ra3 {[%emt 0:00:00] Weighted Error Value: White=0.06 (flawless) /Black=0.56} 1-0

[Event "German Bundesliga 2021-22"]
[Site "Germany"]
[Date "2022.04.30"]
[Round "5.3"]
[White "Thybo, Jesper Sondergaard"]
[Black "Ragger, Markus"]
[Result "1/2-1/2"]
[ECO "D91"]
[WhiteElo "2559"]
[BlackElo "2656"]
[Annotator "TA"]
[PlyCount "176"]
[EventDate "2022.03.05"]
[EventType "team-tourn"]
[EventCountry "GER"]
[SourceTitle "playchess.com"]
[Source "ChessBase"]
[SourceQuality "1"]
[TimeControl "40/5400+30:1800+30"]

{[%evp 35,176,26,32,34,25,33,33,20,18,7,61,66,65,54,62,62,64,60,71,16,19,20,78,66,143,151,110,43,49,58,266,261,221,221,473,434,460,464,445,430,436,0,355,352,452,431,400,367,356,320,258,178,148,160,191,167,222,210,241,213,250,221,241,237,203,190,193,79,80,76,80,83,83,69,81,0,0,0,0,0,0,0,0,0,0,0,0,0,0,0,0,0,0,0,0,0,0,0,0,0,0,0,0,0,0,0,0,0,0,0,0,0,0,0,0,0,0,0,0,0,0,0,0,0,0,0,0,0,0,0,0,0,0,0,0,0,0,0,0,0,0,0,0]} 1. d4 {[%emt 0:00:00]} Nf6 {[%emt 0:00:00]} 2. c4 {[%emt 0:00:00]} g6 {[%emt 0:00:00]} 3. Nc3 {[%emt 0:00:00]} d5 {[%emt 0:00:00]} 4. Nf3 {[%emt 0:00:00]} Bg7 {[%emt 0:00:00]} 5. Bg5 {[%emt 0:00:00]} Ne4 {[%emt 0:00:00]} 6. Bf4 {[%emt 0:00:00]} O-O {[%emt 0:00:00]} 7. e3 {[%emt 0:00:00]} c5 {[%emt 0:00:00]} 8. cxd5 {[%emt 0:00:00]} Bf5 {[%emt 0:00:00]} 9. Bd3 {[%emt 0:17:39]} Nxc3 {[%emt 0:00:00]} 10. bxc3 {[%emt 0:02:38]} Qxd5 {[%emt 0:00:00]} 11. O-O {[%emt 0:01:56]} Nc6 {[%emt 0:00:00]} 12. Bxf5 {[%emt 0:17:46]} Qxf5 {[%emt 0:07:21]} 13. Qb1 {[%emt 0:00:33]} b6 {[%emt 0:05:56]} 14. Qxf5 {[%emt 0:05:08]} gxf5 {[%emt 0:01:47]} 15. Rab1 {[%emt 0:00:08]} cxd4 {[%emt 0:10:20]} 16. Nxd4 {[%emt 0:07:07]} Rfc8 {[%emt 0:09:05]} 17. Nxf5 {[%emt 0:06:11]} Bxc3 {[%emt 0:11:17]} 18. Rfc1 {[%emt 0:01:59]} Bf6 {[%emt 0:00:36]} 19. g4 {[%emt 0:00:38]} Kf8 $1 {[%emt 0:02:39]} 20. g5 {[%emt 0:02:28]} Bh8 {[%emt 0:03:51]} 21. Rc2 {[%emt 0:03:55]} Nd8 {[%emt 0:06:15]} 22. Rd2 {[%emt 0:09:03]} e5 {[%emt 0:06:18]} (22... Ne6 $11) 23. Bg3 $14 {[%emt 0:00:39]} Ne6 {[%emt 0:00:37]} 24. h4 {[%emt 0:02:24]} Rd8 {[%emt 0:03:24]} 25. Rbd1 {[%emt 0:07:07]} Rxd2 {[%emt 0:01:11]} 26. Rxd2 {[%emt 0:00:04]} Rd8 {[%emt 0:00:21]} 27. Rxd8+ {[%emt 0:03:42]} (27. Rd6 $16) 27... Nxd8 $11 {[%emt 0:00:03]} 28. Kg2 {[%emt 0:00:38]} Ke8 {[%emt 0:12:12]} (28... Nc6 $11 {keeps the balance.}) 29. Kf3 $16 {[%emt 0:02:06]} Kd7 {[%emt 0:00:18]} ({Black should play} 29... Nc6 $14) 30. Kg4 $1 $16 {[%emt 0:01:52]} f6 {[%emt 0:06:09]} 31. e4 {[%emt 0:01:44]} (31. f3 $16) 31... fxg5 $1 $14 {[%emt 0:00:51]} 32. hxg5 {[%emt 0:00:04]} Nf7 $2 {[%emt 0:01:02]} (32... a5 $14) 33. f3 $18 {[%emt 0:01:23]} Kc6 {[%emt 0:00:50]} 34. Kh5 {[%emt 0:01:47]} b5 $2 {[%emt 0:00:05]} (34... Kd7 35. Bf2 Ke6) 35. Be1 $18 {[%emt 0:02:24]} Kd7 {[%emt 0:02:24]} 36. Bb4 {[%emt 0:03:12]} Ke6 {[%emt 0:00:07]} 37. Ba5 {[%emt 0:00:37]} Kd7 {[%emt 0:00:32]} 38. Bb4 {[%emt 0:01:23]} Ke6 {[%emt 0:00:01]} 39. Bc5 {[%emt 0:00:50]} a6 {[%emt 0:00:21]} 40. Bb4 {[%emt 0:00:24]} Kd7 {[%emt 0:00:07]} 41. Ba5 {[%emt 0:06:46]} Ke6 {[%emt 0:00:00]} 42. Bb6 {[%emt 0:02:22]} Kd7 {[%emt 0:00:00]} 43. Nh6 {[%emt 0:01:53]} Nd6 {[%emt 0:00:00]} 44. Bc5 {[%emt 0:00:25]} Nb7 {[%emt 0:00:00]} 45. Ba3 {[%emt 0:00:16]} Nd8 {[%emt 0:00:00]} (45... a5 $142 46. Ng4 Nd8) 46. Bb2 $18 {[%emt 0:01:34]} b4 {[%emt 0:00:00] [#]} 47. f4 $1 {[%emt 0:08:32]} a5 {[%emt 0:00:00]} 48. f5 {[%emt 0:01:05]} (48. Bxe5 $2 Bxe5 49. fxe5 a4 $19) (48. fxe5 Ke6 $11) 48... a4 {[%emt 0:00:00]} 49. Ng4 {[%emt 0:02:15]} Nf7 {[%emt 0:01:13]} (49... b3 $2 50. axb3 a3 51. Bxa3 $18) 50. g6 {[%emt 0:03:56]} hxg6+ {[%emt 0:00:02]} 51. fxg6 {[%emt 0:00:04]} (51. Kxg6 $18 {and the rest is easy.} Nd6 52. Kh7 (52. Bxe5 Bxe5 53. Nxe5+ Ke8 $16)) 51... Nd6 $16 {[%emt 0:00:10]} 52. Bxe5 {[%emt 0:00:30]} Bxe5 {[%emt 0:01:42]} 53. Nxe5+ {[%emt 0:00:01]} Kc7 {[%emt 0:00:06]} 54. Nd3 {[%emt 0:04:19]} ({Of course not} 54. g7 $6 Ne8 55. Kg6 Nxg7 $11) 54... b3 {[%emt 0:00:11] [#]} 55. axb3 {[%emt 0:00:30]} ({Better is} 55. a3 $1 $16 Nxe4 56. Nb2) 55... a3 $11 {[%emt 0:01:11]} 56. Nb4 {[%emt 0:01:06]} Nxe4 {[%emt 0:01:10]} 57. g7 {[%emt 0:00:14]} Nf6+ {[%emt 0:00:02]} 58. Kg6 {[%emt 0:00:13]} Ng8 {[%emt 0:00:03]} 59. Kf7 {[%emt 0:01:17]} Nh6+ {[%emt 0:00:04]} 60. Kg6 {[%emt 0:00:03]} Ng8 {[%emt 0:00:05]} 61. Kf7 {[%emt 0:00:39]} Nh6+ {[%emt 0:00:02]} 62. Ke6 {[%emt 0:00:07]} Ng8 {[%emt 0:06:45]} 63. Nd5+ {[%emt 0:02:06]} Kc6 $1 {[%emt 0:03:58]} 64. Nc3 {[%emt 0:00:01]} Kc5 {[%emt 0:02:21]} 65. Na2 {[%emt 0:00:04]} Nh6 {[%emt 0:05:26]} 66. Kd7 {[%emt 0:00:35]} Kb6 {[%emt 0:01:11]} 67. b4 {[%emt 0:00:32]} Kb5 {[%emt 0:00:10]} 68. Kc7 {[%emt 0:00:47]} Ng8 $1 {[%emt 0:01:03]} 69. Kd6 {[%emt 0:00:32]} Nh6 {[%emt 0:00:16]} 70. Ke6 {[%emt 0:02:08]} Kc4 {[%emt 0:01:37]} 71. Ke5 {[%emt 0:00:43]} Kb5 {[%emt 0:01:56]} 72. Ke4 {[%emt 0:00:45]} Kc4 {[%emt 0:00:14]} 73. Kf4 {[%emt 0:00:20]} Kb5 {[%emt 0:01:21]} 74. Kg5 {[%emt 0:00:44]} Ng8 {[%emt 0:00:05]} 75. Kg6 {[%emt 0:00:25]} Kc4 {[%emt 0:00:57]} 76. Kf7 {[%emt 0:00:31]} Nh6+ {[%emt 0:00:02]} 77. Ke6 {[%emt 0:00:18]} Kb5 {[%emt 0:00:58]} 78. Kd7 {[%emt 0:00:42]} Ng8 $1 {[%emt 0:00:19]} 79. Kd6 {[%emt 0:00:32]} Nh6 {[%emt 0:00:09]} 80. Ke5 {[%emt 0:00:34]} Kc4 {[%emt 0:01:32]} 81. Ke6 {[%emt 0:00:28]} Kb5 {[%emt 0:00:34]} 82. Kd5 {[%emt 0:00:31]} Nf5 $1 {[%emt 0:01:01]} 83. g8=N {[%emt 0:00:09]} Ne3+ {[%emt 0:00:22]} 84. Kd4 {[%emt 0:00:23]} Nc2+ {[%emt 0:00:11]} 85. Kc3 {[%emt 0:00:06]} Nxb4 {[%emt 0:00:06]} 86. Nxb4 {[%emt 0:00:05]} a2 {[%emt 0:00:04]} 87. Nxa2 {[%emt 0:00:19]} Kc5 {[%emt 0:00:08]} 88. Nf6 {[%emt 0:00:29]} Kd6 {[%emt 0:00:06]} 1/2-1/2